Cogmind - Beta 10.2 @@@ ROGUE MODE // 2020.10.31 @ 16:52:58 // Halloween2020/ForbiddenLore Player: Coronach Result: Self-destructed Performance ------------- Evolutions (3) 1500 Regions Visited (4) 800 Robots Destroyed (47) 235 Value Destroyed (1149) 1149 Prototype IDs (5) 100 Alien Tech Used (0) 0 Bonus (65) 65 TOTAL SCORE: 3849 Bonus ------- High Alert Combat Kills 65 Cogmind --------- Core Integrity 557/700 Matter 300/300 Energy 150/150 System Corruption 0% Temperature Cool (0) Movement Rolling (110) Ox1 Location -7/Factory Parts ------- > --- POWER (1) -------- Micro Nuclear Core > --- PROPULSION (2) --- Armored Huge Wheel > --- UTILITY (8) ------ Improved Heat Sink Cooling System Small Storage Unit Medium Storage Unit Improved Signal Interpreter Hacking Suite System Shield Improved Reclamation Unit > --- WEAPON (2) ------- Shock Bomb Launcher Grenade Launcher > --- INVENTORY (10) --- Micro Nuclear Core Armored Huge Wheel Armored Huge Wheel Large Matter Pod (128) Heavy Assault Rifle Chainsword Peak State ------------ > --- POWER ------------ Micro Nuclear Core > --- PROPULSION ------- Armored Huge Wheel > --- UTILITY ---------- Improved Heat Sink Cooling System Small Storage Unit Medium Storage Unit Improved Signal Interpreter Hacking Suite System Shield Improved Reclamation Unit > --- WEAPON ----------- Heavy Assault Rifle Shock Bomb Launcher > --- INVENTORY -------- Micro Nuclear Core Armored Huge Wheel Armored Huge Wheel Large Matter Pod Heavy Assault Rifle Grenade Launcher [Rating: 38] Favorites ----------- Power Ion Engine Engine Ion Engine Power Core Nuclear Core Propulsion Light Treads Treads Light Treads Leg Aluminum Leg Wheel Compact Wheel Utility Small Storage Unit Device Cooling System Storage Small Storage Unit Processor Improved Signal Interpreter Hackware Hacking Suite Weapon Heavy Assault Rifle Energy Gun EM Pulse Gun Energy Cannon Particle Cannon Ballistic Gun Heavy Assault Rifle Launcher Grenade Launcher Build | -11 -10 -9 -8 -7 ------- Run | Scr Mat Mat Mat Fac Slots Evolved 6 | . . 2 2 2 Power . | . . . . . Propulsion . | . . . . . Utility 6 | . . 2 2 2 Weapon . | . . . . . Parts Attached 55 | 3 3 25 13 11 Power 6 | . . 3 2 1 Engine 4 | . . 3 1 . Core 2 | . . . 1 1 Reactor . | . . . . . Propulsion 9 | 2 . 4 2 1 Treads 3 | . . 2 1 . Leg . | . . . . . Wheel 6 | 2 . 2 1 1 Hover . | . . . . . Flight . | . . . . . Utility 16 | . 3 4 4 5 Device 7 | . 2 1 1 3 Storage 3 | . 1 . 1 1 Processor 3 | . . 2 1 . Hackware 3 | . . 1 1 1 Protection . | . . . . . Artifact . | . . . . . Weapon 24 | 1 . 14 5 4 Energy Gun 6 | . . 5 1 . Energy Cannon 2 | . . 2 . . Ballistic Gun 10 | 1 . 4 3 2 Ballistic Cannon . | . . . . . Launcher 6 | . . 3 1 2 Special Weapon . | . . . . . Impact Weapon . | . . . . . Slashing Weapon . | . . . . . Piercing Weapon . | . . . . . Special Melee Weapon . | . . . . . Unidentified Prototypes 3 | . . 2 1 . Parts Lost 6 | . . 3 . 3 Power 2 | . . 1 . 1 Propulsion 1 | . . 1 . . Utility 1 | . . . . 1 Weapon 2 | . . 1 . 1 Highest Loss Streak 2 | . . 2 . 2 Average Slot Usage (%) 97 | . 91 99 99 88 Engine 7 | . 14 11 2 . Core 2 | . . . 6 6 Treads 8 | . . 6 17 . Wheel 10 | . 28 15 . 7 Device 8 | . 2 6 9 15 Storage 19 | . 16 22 18 15 Processor 9 | . . 11 10 7 Hackware 10 | . . 4 16 20 Energy Gun 5 | . 14 8 . . Ballistic Gun 13 | . 14 12 17 12 Naked Turns . | . . . . . Heaviest Build 31 | 12 16 21 27 31 Greatest Support 40 | 32 32 40 40 28 Greatest Overweight (x) 1 | . . . . 1 Average Overweight (x) . | . . . . . Largest Inventory Capacity 10 | 6 8 8 10 10 Average Capacity 8 | 6 6 8 9 10 Most Carried 10 | 6 7 8 10 10 Average Carried 7 | 5 3 6 8 8 Final Capacity 10 | 6 8 8 10 10 Final Carried 10 | 2 7 7 10 8 Class Distribution -------------------- 76% | Scavenger-Mutant 15% | Hacker-Mutant 7% | Mutant Dominant Class ---------------- Mutant | -10/Materials Scavenger-Mutant | -9/Materials Scavenger-Mutant | -8/Materials Hacker-Mutant | -7/Factory Resources | -11 -10 -9 -8 -7 ----------- Run | Scr Mat Mat Mat Fac Matter Collected 1349 | 233 70 502 353 191 Remotely 10 | . 10 . . . Salvage Created 1506 | 80 262 554 408 202 Parts 101 | 3 13 55 21 9 Haulers Intercepted 1 | . . . 1 . Recyclers Shooed 4 | . 3 1 . . Parts Field Recycled . | . . . . . Retrieved Matter . | . . . . . Parts Self-Destructed . | . . . . . Prevented . | . . . . . Kills | -11 -10 -9 -8 -7 ------- Run | Scr Mat Mat Mat Fac Combat Hostiles Destroyed 33 | . 1 22 6 4 Guns 15 | . 1 9 4 1 AOE 18 | . . 13 2 3 Classes Destroyed 9 | 1 4 3 1 . Worker 5 | . 1 3 1 . Builder 1 | . 1 . . . Hauler 1 | . . . 1 . Recycler 3 | 1 2 . . . Operator 2 | . 1 1 . . Watcher 2 | . . 1 1 . Swarmer 11 | . . 11 . . Grunt 17 | . 1 8 5 3 Sentry 5 | . . 3 1 1 Best Kill Streak 10 | 1 3 10 3 3 Combat Bots Only 8 | . 1 8 3 3 Max Kills in Single Turn 4 | 1 1 4 2 1 Gunslinging . | . . . . . Exploded 3 | . . 3 2 1 Melee . | . . . . . Uniques/NPCs Destroyed . | . . . . . Combat | -11 -10 -9 -8 -7 -------- Run | Scr Mat Mat Mat Fac Damage Taken 1629 | . 11 489 283 846 Core 277 | . 11 110 13 143 Absorbed by Shields . | . . . . . Core Remaining (%) 91 | 100 95 72 97 . Volleys Fired 124 | 3 17 56 27 21 Largest 2 | 2 2 2 2 2 Hottest 70 | 60 60 70 46 66 Shots Fired 229 | 6 34 99 50 40 Gun 209 | 6 34 87 46 36 Cannon . | . . . . . Launcher 20 | . . 12 4 4 Special . | . . . . . Kinetic 155 | 3 17 53 46 36 Thermal 6 | . . 6 . . Explosive 14 | . . 12 . 2 Electromagnetic 54 | 3 17 28 4 2 Robot Hit Streak 19 | 3 4 9 11 19 Robot Miss Streak 5 | 1 3 5 5 3 Penetration Max . | . . . . . Secondary Targets . | . . . . . Shots Hit Robots 140 | 4 19 52 34 31 Core Hits 85 | 1 9 46 19 10 Critical Hits 1 | . . . . 1 Critical Kills . | . . . . . Critical Parts Destroyed . | . . . . . Melee Attacks . | . . . . . Impact . | . . . . . Slashing . | . . . . . Piercing . | . . . . . Sneak Attacks . | . . . . . Combat Hostiles . | . . . . . Follow-up Attacks . | . . . . . Damage Inflicted 3305 | 50 183 1643 728 701 Guns 1709 | 50 183 584 447 445 Cannons . | . . . . . Explosions 1595 | . . 1059 280 256 Melee . | . . . . . Ramming 1 | . . . 1 . Kinetic 1211 | 9 42 268 447 445 Thermal 280 | . . 280 . . Explosive 944 | . . 805 . 139 Electromagnetic 869 | 41 141 290 280 117 Impact . | . . . . . Slashing . | . . . . . Piercing . | . . . . . Highest Corruption . | . . . . . Average Corruption . | . . . . . Corruption Purged . | . . . . . Overload Shots . | . . . . . Overflow Damage 30 | . . 30 . . Projectiles . | . . . . . Explosions 30 | . . 30 . . Melee . | . . . . . Knockbacks . | . . . . . Impact . | . . . . . Kinetic . | . . . . . Secondary . | . . . . . Self-Inflicted Damage 17 | . . 17 . . Shots 2 | . . 2 . . Rammed 1 | . . . 1 . Targets Rammed 2 | . . . 2 . Kicked . | . . . . . Crushed 1 | . . . 1 . Highest Temperature 52 | 20 46 52 . . Average Temperature 17 | 13 18 16 . . Received Heat Transfer 555 | . 6 174 162 213 Siege Activations . | . . . . . Robots Corrupted . | . . . . . Combat Hostiles . | . . . . . Parts Fried 3 | . 1 . 2 . Impact Corruptions . | . . . . . Robots Melted . | . . . . . Combat Hostiles . | . . . . . Parts Melted . | . . . . . Heat Transferred 474 | . . 474 . . Parts Sabotaged . | . . . . . Parts Stolen . | . . . . . Parts Stripped . | . . . . . Power Chain Reactions 3 | . . 3 . . Missiles Intercepted . | . . . . . Alert | -11 -10 -9 -8 -7 ------- Run | Scr Mat Mat Mat Fac Peak Influence 629 | 5 88 629 298 193 Initial 265 | . 3 37 265 72 Average 148 | 3 52 206 108 86 Maximum Alert Level 2 | . . 2 1 . Low Security (%) 75 | 100 100 63 77 100 Level 1 11 | . . 11 22 . Level 2 12 | . . 25 . . Level 3 . | . . . . . Level 4 . | . . . . . Level 5 . | . . . . . High Security . | . . . . . Max Security . | . . . . . Squads Dispatched 9 | . 3 4 1 1 Investigation 2 | . . 1 1 . Extermination . | . . . . . Reinforcement 7 | . 3 3 . 1 Assault . | . . . . . Garrison . | . . . . . Intercept . | . . . . . Construction Impeded . | . . . . . Haulers Reinforced . | . . . . . Stealth | -11 -10 -9 -8 -7 --------- Run | Scr Mat Mat Mat Fac Distress Signals 3 | . . 1 2 . Communications Jammed . | . . . . . Distress Signals . | . . . . . Times Spotted 53 | . 5 31 10 7 Peak Tracking Total 6 | . 2 6 4 3 Tactical Retreats 1 | . . . 1 . Traps | -11 -10 -9 -8 -7 ------- Run | Scr Mat Mat Mat Fac Traps Triggered . | . . . . . Indirectly . | . . . . . Trap Hack Attempts . | . . . . . Triggered . | . . . . . Disarmed . | . . . . . Reprogrammed . | . . . . . Reused . | . . . . . Traps Extracted . | . . . . . Installed . | . . . . . Triggered . | . . . . . Machines | -11 -10 -9 -8 -7 ---------- Run | Scr Mat Mat Mat Fac Machines Disabled 2 | . . 2 . . Max in Single Turn 2 | . . 2 . . Machines Sabotaged . | . . . . . Garrisons Compromised . | . . . . . Overloaded Fab Kills . | . . . . . Fab Network Shutdowns . | . . . . . Hacking | -11 -10 -9 -8 -7 --------- Run | Scr Mat Mat Mat Fac Machines Accessed 11 | . . 5 5 1 Terminals 9 | . . 4 5 . Fabricators . | . . . . . Repair Stations 1 | . . . . 1 Recycling Units . | . . . . . Scanalyzers 1 | . . 1 . . Garrison Access . | . . . . . Total Hacks 53 | . . 19 28 6 Successful 43 | . . 15 22 6 Failed 10 | . . 4 6 . Catastrophic . | . . . . . Database Lockouts . | . . . . . Manual 33 | . . 15 18 . Terminals 43 | . . 15 28 . Fabricators . | . . . . . Repair Stations 6 | . . . . 6 Recycling Units . | . . . . . Scanalyzers 4 | . . 4 . . Garrison Access . | . . . . . Terminal Hacks 16 | . . 3 13 . Prototype ID Bank 1 | . . . 1 . Level Access Points 2 | . . 1 1 . Branch Access Points 2 | . . 1 1 . Emergency Access Points 2 | . . 1 1 . Recycling Unit Index 1 | . . . 1 . Alert Level 1 | . . . 1 . Unreport Threat 2 | . . . 2 . Locate Traps 3 | . . . 3 . Registered Components 1 | . . . 1 . Zone Layout 1 | . . . 1 . Fabricator Hacks . | . . . . . Repair Station Hacks 6 | . . . . 6 Scan Component 3 | . . . . 3 Repair 3 | . . . . 3 Recycling Unit Hacks . | . . . . . Scanalyzer 4 | . . 4 . . Insert Component 1 | . . 1 . . Analyze 3 | . . 3 . . Garrison Access Hacks . | . . . . . Unauthorized Hacks 17 | . . 8 9 . Terminals 17 | . . 8 9 . Track 5 | . . 2 3 . Assimilate 3 | . . 2 1 . Botnet 9 | . . 4 5 . Fabricators . | . . . . . Repair Stations . | . . . . . Recycling Units . | . . . . . Scanalyzers . | . . . . . Garrison Access . | . . . . . Data Cores Recovered . | . . . . . Used . | . . . . . Hacking Detections 9 | . . 4 5 . Full Trace Events 5 | . . 3 2 . Feedback Events . | . . . . . Feedback Blocked . | . . . . . Robot Schematics Acquired . | . . . . . Robots Built . | . . . . . Matter . | . . . . . Time . | . . . . . Total Robot Build Rating . | . . . . . Part Schematics Acquired . | . . . . . Parts Built . | . . . . . Matter . | . . . . . Time . | . . . . . Total Part Build Rating . | . . . . . Parts Repaired 3 | . . . . 3 Time 96 | . . . . 96 Parts Recycled . | . . . . . Recycled Matter . | . . . . . Retrieved Matter . | . . . . . Retrieved Components . | . . . . . Parts Scanalyzed 1 | . . 1 . . Part Schematics Acquired . | . . . . . Parts Damaged . | . . . . . Bothacking | -11 -10 -9 -8 -7 ------------ Run | Scr Mat Mat Mat Fac Used RIF Installer . | . . . . . Robots Hacked . | . . . . . Non-combat . | . . . . . Combat . | . . . . . Robot Hacks Applied . | . . . . . Relay Couplers Released . | . . . . . Robots Rewired . | . . . . . Allies Hacked . | . . . . . Hacks Repelled . | . . . . . Allies | -11 -10 -9 -8 -7 -------- Run | Scr Mat Mat Mat Fac Total Allies 1 | . . 1 . . Largest Group 1 | . . 1 . . Highest-Rated Group 10 | . . 10 . . Highest-Rated Ally 10 | . . 10 . . Total Orders . | . . . . . Ally Attacks . | . . . . . Total Damage . | . . . . . Kills . | . . . . . Allies Corrupted . | . . . . . Allies Melted . | . . . . . Intel | -11 -10 -9 -8 -7 ------- Run | Scr Mat Mat Mat Fac Robot Analysis Total . | . . . . . Derelict Logs Recovered . | . . . . . Drone Launches . | . . . . . Drone Recoveries . | . . . . . Exploration | -11 -10 -9 -8 -7 ------------- Run | Scr Mat Mat Mat Fac Turns Passed 2177 | 25 145 1082 612 313 Spaces Moved 900 | 7 86 381 293 133 Core . | . . . . . Treads 443 | . . 159 284 . Legs 3 | 3 . . . . Wheels 454 | 4 86 222 9 133 Hover . | . . . . . Flight . | . . . . . Fastest Speed 90 | 100 100 90 100 100 Average Speed 129 | 108 100 124 158 103 Slowest Speed 160 | 120 100 160 160 110 Overloaded Moves . | . . . . . Propulsion Burnouts . | . . . . . Robots Hopped . | . . . . . Cave-ins Triggered . | . . . . . Exploration Rate (%) 19 | 2 17 41 33 4 Regions Visited 4 Branch Regions . Pre-discovered Areas . | . . . . . Known Exits Taken 2 | . . 1 1 . Unknown Exits Taken 2 | 1 1 . . . Scrap Searched . | . . . . . Spaces Dug . | . . . . . Terrain Destroyed 106 | . . 101 . 5 Melee . | . . . . . Projectile . | . . . . . AOE 106 | . . 101 . 5 Terrain Rammed . | . . . . . Walls Destroyed . | . . . . . Machines Disabled . | . . . . . Actions | -11 -10 -9 -8 -7 --------- Run | Scr Mat Mat Mat Fac Total 1691 | 20 114 896 395 266 Wait 532 | . . 408 28 96 Move 896 | 6 85 380 292 133 Hop . | . . . . . Pick Up 39 | 2 7 12 15 3 Fast Attach 16 | . 1 7 3 5 Attach 13 | . 1 4 3 5 Detach 1 | . . . . 1 Swap 26 | 3 1 14 7 1 Drop 42 | 6 2 15 18 1 Fire 124 | 3 17 56 27 21 Melee . | . . . . . Ram . | . . . . . Kick . | . . . . . Crush 2 | . . . 2 . Escape Stasis . | . . . . . Rewire . | . . . . . Trap . | . . . . . Miscellaneous . | . . . . . Route ------- -11/Scrapyard -10/Materials -9/Materials (discovered 5 exits: *Mat x3 / *Min / Sto) -8/Materials (discovered 3 exits: *Fac x3) -7/Factory History --------- Turn | Location | Event 11 | -11/Scrapyard | Discovered new exit (range 2) 26 | -11/Scrapyard | Entered Materials 156 | -10/Materials | Discovered new exit (range 16) 171 | -10/Materials | Entered another Materials area 171 | -9/Materials | Evolved 2 slots: Utility x2 478 | -9/Materials | Build established: Scavenger-Mutant 888 | -9/Materials | Identified exit to Mines 888 | -9/Materials | Identified exit to Storage 902 | -9/Materials | Destroyed 8 combat bots 996 | -9/Materials | Identified exit to Materials 1117 | -9/Materials | Destroyed 7 combat bots 1253 | -9/Materials | Entered another Materials area 1253 | -8/Materials | Evolved 2 slots: Utility x2 1270 | -8/Materials | Identified exit to Factory 1865 | -8/Materials | Entered Factory 1865 | -7/Factory | Evolved 2 slots: Utility x2 1967 | -7/Factory | Repaired Hvy. Assault Rifle 2001 | -7/Factory | Repaired Hvy. Assault Rifle 2034 | -7/Factory | Repaired Cooling System 2175 | -7/Factory | Build established: Hacker-Mutant 2178 | -7/Factory | Self-destructed Last Messages --------------- 02124_ Y-54 Guardian destroyed. 02127_ Dropped Arm. Huge Wheel. 02133_ Acquired Mic. Nuclear Core. 02141_ Acquired 73 matter. 02154_ Hvy. Assault Rifle destroyed. 02154_ Reclaimed 15 matter. 02155_ G-47 Trooper destroyed. 02160_ U-05 Engineer lays Concrete. 02160_ G-47 Trooper destroyed. 02161_ U-05 Engineer lays Concrete. 02163_ Acquired Chainsword. 02164_ U-05 Engineer builds a Wall. 02164_ Acquired 13 matter. 02168_ U-05 Engineer builds a Wall. 02172_ Acquired 11 matter. 02172_ U-05 Engineer lays Concrete. 02173_ Acquired 42 matter. 02173_ U-05 Engineer lays Concrete. 02174_ Acquired 52 matter. 02174_ U-05 Engineer lays Concrete. Map ----- +----------------------------------------------------+ | ??????????????????????????????????????????? | | ??????????????????????????????????????????? | | ??????????????????????????????????????????? | | ??????????????????????????????????????????? | | ??????????????????????????????????????????? | | ??????????????????????????????????????????? | | ??????????????????????????????????????????? | | ??????????????????????????????????????????? | | ??????????????????????????????????????????? | | ??????????????????????????????????????????? | | ??????????????????????????????????????????? | | ??????????????????????????????????????????? | | ??????????????????????????????????????????? | | ??????????????????????????????????????????? | | ?????????????????????????#????????????????? | | ????????????????????##### ####????????????? | | ????????????????????# Y #????????????? | | ????????????????????# """"" #????????????? | | ????????????????????# ""T"" #????????????? | | ????????????????????# #????????????? | | ????????????????????# #????????????? | | ????????????????????# ]! #????????????? | | ????????????????????# !! #?? ?????????? | | ????????????????????# #? #????????? | | ????????????????????# # +????????? | | ????????????????######"# @#= # #????????? | | ????????????????# = ! #????????? | | ?????????########;;;;; = #????????? | | ???????? #????????? | | ??????????####; ! #????????? | | #/############ [ /###????????? | | = != ## ???? | | ####### = #u #? ???? | | """ ###########* ##? ???? | | ?# [ ; = #?? !!! ???? | | """ # ##m;;;;# #??? !!! ???? | | # # ## #??? !!! ???? | | """ + # ## #??? ???? | | # """ """ # ## #???? ???? | | # """ """ # ## #???? """ "?????? | | #### #?# """ """ # ## #???? ??????????? | | ???# #?# # ## #???????????????? | | ???# #?########### ## #???????????????? | | ####+########????########+######??????????? | | #?????# """ #??????????? | | #?????# "R" #??????????? | | #?????# "" " " #??????????? | | #?????# "" #??????????? | | ####### """ #??????????? | | # # """ #??????????? | +----------------------------------------------------+ Best States ------------- Heat Dissipation 70 Energy Generation 15 Energy Capacity 265 Matter Stores 420 Matter Capacity 450 Sight Range 16 Terrain Scan Range 14 Terrain Scan Density 85 Reclamation Efficiency 15 Evasion (%) 42 Targeting Accuracy 6 Recoil Reduction 2 Offensive Hacking 20 Defensive Hacking 10 Item Schematics ----------------- None Robot Schematics ------------------ None Fabricated ------------ Nothing Alien Tech Used ----------------- None Achievements -------------- None Challenges ------------ None Game ------ Seed TitaniumKineticRedistributor Manual? 0 Play Time 00:43:49 Cumulative 43.3 hours Start 2020.10.31 @ 15:58:26 End 2020.10.31 @ 16:52:58 Sessions 1 Manual Loads 0 Difficulty Rogue Special Mode Halloween2020/ForbiddenLore Game No. 23 Rogue 20 Adventurer 0 Explorer 3 Win Type - Total 0 Types 0/0/0/0/0/0/0/0/0 Lore% 22 Gallery% 39 Achievement% 26 Wizard Run 0 Options --------- ASCII 0 Keyboard 0 Movement Numpad Keybinds 0 Fullscreen 2 Font 16/Dina Map View 76x50 Tactical HUD 1 Map Filters NONE Filters NONE Steam 1 RUN: ab4506c5-e471-4580-9155-05c5ca2b2f29